{"text_format":"3","workbook":"xlsx","n_sheets":2,"sheets":["КАК ИСПОЛЬЗОВАТЬ ЭТУ КНИГУ","КЛАССНЫЙ ЖУРНАЛ"],"not_rendered":{"defined_names":7},"read":"whole","date_system":"1900"}

{"sheet":"КАК ИСПОЛЬЗОВАТЬ ЭТУ КНИГУ","index":0,"n_rows":10,"n_cols":2,"rows_kept":10}
[null,"ИНСТРУКЦИИ"]
[null,"Используйте лист «Журнал», чтобы вычислять оценки. За каждое задание начисляется определенное количество баллов. "]
[null,"Инструкции: Обязательно сохраняйте резервные копии журнала."]
[null,"1. Укажите название учебного заведения, сведения о классе, имена учащихся и их идентификаторы (необязательно). "]
[null,"2. Адаптируйте таблицу оценок и средних баллов к используемой вами системе оценивания."]
[null,"3. Укажите названия заданий, опросов и контрольных работ (например, «Опрос 1»), начиная с ячейки H8, а также количество баллов, начисляемое за каждое из них. "]
[null,"4. Укажите оценки каждого учащегося за каждое задание или контрольную работу. Столбцы «Средняя оценка», «Оценка», «Буква» и «Средний балл» вычисляются автоматически, но при необходимости их можно редактировать. Чтобы начислить дополнительные зачетные баллы, просто поставьте за задание оценку, превышающую максимальное количество баллов для этого задания."]
[null,"Если вам нужно изменить область, которая выводится на печать, используйте команду «Область печати» в меню «Разметка страницы»."]
[null,"Число баллов, соответствующее той или иной оценке, вычисляется по стандартной процентной шкале в соответствии с общим количеством баллов, указанным в строках 8 и 9. Адаптируйте каждое задание и каждую контрольную работу к нужному количеству баллов, а затем измените процент для соответствующей оценки. Перепишите ячейки оценок, чтобы внести изменения вручную."]
[null,"Укажите каждое задание, опрос или контрольную работу и начисляемые за них баллы в ячейках от H8 до X9."]

{"sheet":"КЛАССНЫЙ ЖУРНАЛ","index":1,"n_rows":24,"n_cols":24,"rows_kept":24,"merged":[[1,1,2,6],[3,1,3,6],[4,1,6,6],[7,4,7,6],[8,4,8,6],[10,4,10,6],[11,4,11,6],[20,1,20,2],[20,3,20,4],[21,1,21,2],[21,3,21,4],[22,1,22,2],[22,3,22,4],[23,1,23,2],[23,3,23,4]]}
[null,"НАЗВАНИЕ УЧЕБНОГО ЗАВЕДЕНИЯ"]
[null,"Имя преподавателя"]
[{"$nulls":7},"Оценка",{"$f":"I4*Общий_балл","v":118},120,126,134,140,{"v":145.6666666666666,"d":"146"},154,160,166,174,180,186,194]
[null,"Класс или проект",{"$nulls":5},"%",{"v":0.59,"d":"59%"},{"v":0.6,"d":"60%"},{"v":0.63,"d":"63%"},{"v":0.67,"d":"67%"},{"v":0.7,"d":"70%"},{"v":0.728333333333333,"d":"73%"},{"v":0.77,"d":"77%"},{"v":0.8,"d":"80%"},{"v":0.83,"d":"83%"},{"v":0.87,"d":"87%"},{"v":0.9,"d":"90%"},{"v":0.93,"d":"93%"},{"v":0.97,"d":"97%"}]
[null,"Год, семестр или четверть",{"$nulls":5},"Буква","F","D-","D","D+","C-","C","C+","B-","Б","B+","A-","А","A+"]
[{"$nulls":7},"Средний балл",0,0.67,1,1.33,1.67,2,2.33,2.67,3,3.33,3.67,4,4]
[]
[{"$nulls":4},"Название задания или контрольной работы",null,null,"HW1","HW2","Q1"]
[{"$nulls":4},"Всего доступно баллов",null,null,50,50,100]
[]
[{"$nulls":4},"Общее число заданий и контрольных работ:",null,null,{"$f":"COUNTA(H8:AH8)","v":3}]
[{"$nulls":4},"Общее количество возможных баллов:",null,null,{"$f":"SUM(H9:AH9)","v":200}]
[]
[null,"Имя учащегося","ИД учащегося","Средняя оценка","Оценка","Буква","Средний балл","Столбец6","Столбец7","Столбец8","Столбец9","Столбец10","Столбец11","Столбец12","Столбец13","Столбец14","Столбец15","Столбец16","Столбец17","Столбец18","Столбец19","Столбец20","Столбец21","Столбец22"]
[null,"Учащийся №1",null,{"$f":"IFERROR(IF(COUNT(Оценки[[#This Row],[Столбец6]:[Столбец22]])=0,\"\",SUM(Оценки[[#This Row],[Столбец6]:[Столбец22]])/Общий_балл),\"\")","v":{"v":0.91,"d":"91.0%"}},{"$f":"IF(COUNT(Оценки[[#This Row],[Столбец6]:[Столбец22]])=0,\"\",SUM(Оценки[[#This Row],[Столбец6]:[Столбец22]]))","v":182},{"$f":"IFERROR(IF(Оценки[[#This Row],[Средняя оценка]]<>\"\",HLOOKUP(Оценки[[#This Row],[Средняя оценка]]*Общий_балл,Классный_журнал,3),\"\"),0)","v":"A-"},{"$f":"IFERROR(IF(Оценки[[#This Row],[Средняя оценка]]<>\"\",HLOOKUP(Оценки[[#This Row],[Средняя оценка]]*Общий_балл,Классный_журнал,4),\"\"),0)","v":3.67},45,45,92]
[null,"Учащийся №2",null,{"$f":"IFERROR(IF(COUNT(Оценки[[#This Row],[Столбец6]:[Столбец22]])=0,\"\",SUM(Оценки[[#This Row],[Столбец6]:[Столбец22]])/Общий_балл),\"\")","v":{"v":1,"d":"100.0%"}},{"$f":"IF(COUNT(Оценки[[#This Row],[Столбец6]:[Столбец22]])=0,\"\",SUM(Оценки[[#This Row],[Столбец6]:[Столбец22]]))","v":200},{"$f":"IFERROR(IF(Оценки[[#This Row],[Средняя оценка]]<>\"\",HLOOKUP(Оценки[[#This Row],[Средняя оценка]]*Общий_балл,Классный_журнал,3),\"\"),0)","v":"A+"},{"$f":"IFERROR(IF(Оценки[[#This Row],[Средняя оценка]]<>\"\",HLOOKUP(Оценки[[#This Row],[Средняя оценка]]*Общий_балл,Классный_журнал,4),\"\"),0)","v":{"v":4,"d":"4.00"}},50,50,100]
[{"$nulls":3},{"$f":"IFERROR(IF(COUNT(Оценки[[#This Row],[Столбец6]:[Столбец22]])=0,\"\",SUM(Оценки[[#This Row],[Столбец6]:[Столбец22]])/Общий_балл),\"\")","v":""},{"$f":"IF(COUNT(Оценки[[#This Row],[Столбец6]:[Столбец22]])=0,\"\",SUM(Оценки[[#This Row],[Столбец6]:[Столбец22]]))","v":""},{"$f":"IFERROR(IF(Оценки[[#This Row],[Средняя оценка]]<>\"\",HLOOKUP(Оценки[[#This Row],[Средняя оценка]]*Общий_балл,Классный_журнал,3),\"\"),0)","v":""},{"$f":"IFERROR(IF(Оценки[[#This Row],[Средняя оценка]]<>\"\",HLOOKUP(Оценки[[#This Row],[Средняя оценка]]*Общий_балл,Классный_журнал,4),\"\"),0)","v":""}]
[{"$nulls":3},{"$f":"IFERROR(IF(COUNT(Оценки[[#This Row],[Столбец6]:[Столбец22]])=0,\"\",SUM(Оценки[[#This Row],[Столбец6]:[Столбец22]])/Общий_балл),\"\")","v":""},{"$f":"IF(COUNT(Оценки[[#This Row],[Столбец6]:[Столбец22]])=0,\"\",SUM(Оценки[[#This Row],[Столбец6]:[Столбец22]]))","v":""},{"$f":"IFERROR(IF(Оценки[[#This Row],[Средняя оценка]]<>\"\",HLOOKUP(Оценки[[#This Row],[Средняя оценка]]*Общий_балл,Классный_журнал,3),\"\"),0)","v":""},{"$f":"IFERROR(IF(Оценки[[#This Row],[Средняя оценка]]<>\"\",HLOOKUP(Оценки[[#This Row],[Средняя оценка]]*Общий_балл,Классный_журнал,4),\"\"),0)","v":""}]
[{"$nulls":3},{"$f":"IFERROR(IF(COUNT(Оценки[[#This Row],[Столбец6]:[Столбец22]])=0,\"\",SUM(Оценки[[#This Row],[Столбец6]:[Столбец22]])/Общий_балл),\"\")","v":""},{"$f":"IF(COUNT(Оценки[[#This Row],[Столбец6]:[Столбец22]])=0,\"\",SUM(Оценки[[#This Row],[Столбец6]:[Столбец22]]))","v":""},{"$f":"IFERROR(IF(Оценки[[#This Row],[Средняя оценка]]<>\"\",HLOOKUP(Оценки[[#This Row],[Средняя оценка]]*Общий_балл,Классный_журнал,3),\"\"),0)","v":""},{"$f":"IFERROR(IF(Оценки[[#This Row],[Средняя оценка]]<>\"\",HLOOKUP(Оценки[[#This Row],[Средняя оценка]]*Общий_балл,Классный_журнал,4),\"\"),0)","v":""}]
[]
[null,"Сводка по классу",null,"Средняя оценка",null,"Буква","Средний балл","","","","","","","","","","",""]
[null," Средняя оценка",null,{"$f":"IFERROR(AVERAGE(Оценки[[#All],[Средняя оценка]]),0)","v":{"v":0.9550000000000001,"d":"95.5%"}},null,{"$f":"IFERROR(HLOOKUP(D22*Общий_балл,Классный_журнал,3),\"\")","v":"А"},{"$f":"IFERROR(AVERAGE(Оценки[[#All],[Средний балл]]),0)","v":{"v":3.835,"d":"3.84"}},"","","","","","","","","","","","","","","","",""]
[null," Максимальная оценка",null,{"$f":"IFERROR(MAX(Оценки[[#All],[Средняя оценка]]),0)","v":{"v":1,"d":"100.0%"}},null,{"$f":"IFERROR(HLOOKUP(D23*Общий_балл,Классный_журнал,3),\"\")","v":"A+"},{"$f":"IFERROR(MAX(Оценки[[#All],[Средний балл]]),0)","v":{"v":4,"d":"4.00"}},"","","","","","","","","","","","","","","","",""]
[null," Минимальная оценка",null,{"$f":"IFERROR(MIN(Оценки[[#All],[Средняя оценка]]),0)","v":{"v":0.91,"d":"91.0%"}},null,{"$f":"IFERROR(HLOOKUP(D24*Общий_балл,Классный_журнал,3),\"\")","v":"A-"},{"$f":"IFERROR(MIN(Оценки[[#All],[Средний балл]]),0)","v":3.67},"","","","","","","","","","","","","","","","",""]